[Event "Early-Titled-Tuesday-Blitz-October-03-2023"]
[Site "Chess.com"]
[Date "2023.10.03"]
[Round "10"]
[White "Grossboss19"]
[Black "Juicy_Fork"]
[Result "0-1"]
[WhiteElo "2516"]
[BlackElo "2466"]
[TimeControl "180+1"]
[EndTime "9:57:28 PDT"]
[Termination "Juicy_Fork won on time"]

1. e4 {[%clk 0:03:00]} 1... e5 {[%clk 0:02:59.1]} 2. Nf3 {[%clk 0:02:59.4]} 2...
Nc6 {[%clk 0:02:59]} 3. Bb5 {[%clk 0:02:56.5]} 3... a6 {[%clk 0:02:58.6]} 4. Ba4
{[%clk 0:02:53.9]} 4... d6 {[%clk 0:02:58.3]} 5. h3 {[%clk 0:02:50.4]} 5... Bd7
{[%clk 0:02:56.7]} 6. O-O {[%clk 0:02:49]} 6... g6 {[%clk 0:02:55.4]} 7. c3
{[%clk 0:02:42]} 7... Bg7 {[%clk 0:02:55.2]} 8. d4 {[%clk 0:02:30.1]} 8... Nf6
{[%clk 0:02:54.8]} 9. Re1 {[%clk 0:02:21.1]} 9... O-O {[%clk 0:02:53.5]} 10.
Nbd2 {[%clk 0:02:10.6]} 10... Qe7 {[%clk 0:02:41.5]} 11. Bc2 {[%clk 0:01:55.1]}
11... b5 {[%clk 0:02:27.3]} 12. a4 {[%clk 0:01:50.1]} 12... Rfb8 {[%clk
0:02:18.3]} 13. d5 {[%clk 0:01:38]} 13... Nd8 {[%clk 0:02:15.8]} 14. axb5 {[%clk
0:01:30.9]} 14... axb5 {[%clk 0:02:15.1]} 15. Rxa8 {[%clk 0:01:31.6]} 15... Rxa8
{[%clk 0:02:16]} 16. Bd3 {[%clk 0:01:31.7]} 16... Nh5 {[%clk 0:02:05.9]} 17. Bf1
{[%clk 0:01:26.3]} 17... c6 {[%clk 0:02:01.7]} 18. dxc6 {[%clk 0:01:16.1]} 18...
Bxc6 {[%clk 0:01:59.8]} 19. Nb1 {[%clk 0:01:06.3]} 19... Ne6 {[%clk 0:01:54.9]}
20. g3 {[%clk 0:00:55.3]} 20... Nc5 {[%clk 0:01:43.2]} 21. Nfd2 {[%clk
0:00:50.1]} 21... h6 {[%clk 0:01:29.8]} 22. b4 {[%clk 0:00:45.4]} 22... Ne6
{[%clk 0:01:26.2]} 23. Na3 {[%clk 0:00:39.3]} 23... Rb8 {[%clk 0:01:20.9]} 24.
Bb2 {[%clk 0:00:27.6]} 24... Kh7 {[%clk 0:01:09.7]} 25. Nb3 {[%clk 0:00:22.7]}
25... Rd8 {[%clk 0:00:59.1]} 26. Bg2 {[%clk 0:00:20.6]} 26... Nc7 {[%clk
0:00:25.9]} 27. Na5 {[%clk 0:00:19.1]} 27... Ba8 {[%clk 0:00:25.5]} 28. Qc2
{[%clk 0:00:16.3]} 28... d5 {[%clk 0:00:19.9]} 29. exd5 {[%clk 0:00:16.3]} 29...
Nxd5 {[%clk 0:00:19.6]} 30. Nxb5 {[%clk 0:00:14.4]} 30... Qd7 {[%clk 0:00:11.7]}
31. Na3 {[%clk 0:00:12.1]} 31... Rc8 {[%clk 0:00:09.5]} 32. Qb3 {[%clk
0:00:11.1]} 32... Qe6 {[%clk 0:00:05.6]} 33. Rd1 {[%clk 0:00:10.2]} 33... Rd8
{[%clk 0:00:02.1]} 34. c4 {[%clk 0:00:06.6]} 34... Ne7 {[%clk 0:00:01.7]} 35.
Rxd8 {[%clk 0:00:05.5]} 35... Bxg2 {[%clk 0:00:01.7]} 36. Kxg2 {[%clk
0:00:06.4]} 36... e4 {[%clk 0:00:02.2]} 37. Bxg7 {[%clk 0:00:04.8]} 37... Nxg7
{[%clk 0:00:03.1]} 38. Qe3 {[%clk 0:00:04.1]} 38... Nef5 {[%clk 0:00:03.2]} 39.
Qf4 {[%clk 0:00:03]} 39... e3 {[%clk 0:00:03.8]} 40. fxe3 {[%clk 0:00:03.1]}
40... Nxe3+ {[%clk 0:00:04.7]} 41. Kf2 {[%clk 0:00:03.1]} 41... Nef5 {[%clk
0:00:03]} 42. Nb3 {[%clk 0:00:02.9]} 42... g5 {[%clk 0:00:02.9]} 43. Qd6 {[%clk
0:00:01.4]} 43... Nxd6 {[%clk 0:00:02.6]} 44. Nd4 {[%clk 0:00:02.3]} 44... Qf6+
{[%clk 0:00:02.5]} 0-1

[Event "Early-Titled-Tuesday-Blitz-October-03-2023"]
[Site "Chess.com"]
[Date "2023.10.03"]
[Round "10"]
[White "Hrant_ChessMood"]
[Black "Indianlad"]
[Result "1-0"]
[WhiteElo "2951"]
[BlackElo "3022"]
[TimeControl "180+1"]
[EndTime "9:57:29 PDT"]
[Termination "Hrant_ChessMood won by resignation"]

1. d4 {[%clk 0:03:00.9]} 1... Nf6 {[%clk 0:02:59.4]} 2. c4 {[%clk 0:03:00.6]}
2... e6 {[%clk 0:02:59.5]} 3. Bf4 {[%clk 0:03:00]} 3... d5 {[%clk 0:02:57]} 4.
e3 {[%clk 0:03:00.6]} 4... Bd6 {[%clk 0:02:56.4]} 5. Nc3 {[%clk 0:02:58.2]} 5...
Bxf4 {[%clk 0:02:55.4]} 6. exf4 {[%clk 0:02:57.9]} 6... O-O {[%clk 0:02:55.5]}
7. Nf3 {[%clk 0:02:56.9]} 7... b6 {[%clk 0:02:55.1]} 8. Bd3 {[%clk 0:02:45.2]}
8... Ba6 {[%clk 0:02:40.7]} 9. cxd5 {[%clk 0:02:39.6]} 9... Bxd3 {[%clk
0:02:40.6]} 10. Qxd3 {[%clk 0:02:40.5]} 10... Nxd5 {[%clk 0:02:30.8]} 11. g3
{[%clk 0:02:40.6]} 11... Nd7 {[%clk 0:02:29]} 12. Nxd5 {[%clk 0:02:33.4]} 12...
exd5 {[%clk 0:02:28.8]} 13. O-O {[%clk 0:02:34.3]} 13... c5 {[%clk 0:02:27.8]}
14. dxc5 {[%clk 0:02:22.1]} 14... Nxc5 {[%clk 0:02:27.7]} 15. Qc2 {[%clk
0:02:14.8]} 15... Qd7 {[%clk 0:02:11.8]} 16. Rad1 {[%clk 0:02:14.6]} 16... Rad8
{[%clk 0:02:11.2]} 17. Ne5 {[%clk 0:02:04.3]} 17... Qh3 {[%clk 0:01:58.4]} 18.
Nc6 {[%clk 0:01:57]} 18... Rd6 {[%clk 0:01:03]} 19. Ne7+ {[%clk 0:01:56.6]}
19... Kh8 {[%clk 0:01:03.4]} 20. Nxd5 {[%clk 0:01:53.6]} 20... Ne6 {[%clk
0:00:59.3]} 21. Ne3 {[%clk 0:01:40.7]} 21... Nd4 {[%clk 0:00:58.4]} 22. Qe4
{[%clk 0:01:40.8]} 22... Rfd8 {[%clk 0:00:57.4]} 23. Qg2 {[%clk 0:01:28.4]}
23... Qh5 {[%clk 0:00:54.9]} 24. Kh1 {[%clk 0:01:24]} 24... f5 {[%clk
0:00:52.9]} 25. h4 {[%clk 0:01:18.7]} 25... b5 {[%clk 0:00:40.7]} 26. Rd2 {[%clk
0:01:13.3]} 26... h6 {[%clk 0:00:30.7]} 27. Rfd1 {[%clk 0:01:12.1]} 27... g5
{[%clk 0:00:31.4]} 28. Nc2 {[%clk 0:00:42.3]} 28... gxh4 {[%clk 0:00:08.9]} 29.
g4 {[%clk 0:00:42.6]} 29... fxg4 {[%clk 0:00:07.8]} 30. Rxd4 {[%clk 0:00:42.9]}
30... h3 {[%clk 0:00:08]} 31. Qe4 {[%clk 0:00:39.1]} 31... Re8 {[%clk
0:00:04.7]} 32. Qd3 {[%clk 0:00:30.6]} 32... Rde6 {[%clk 0:00:05.1]} 33. Kh2
{[%clk 0:00:25.1]} 33... Qh4 {[%clk 0:00:05.1]} 34. Qg3 {[%clk 0:00:24.3]} 34...
Qf6 {[%clk 0:00:04.9]} 35. Ne3 {[%clk 0:00:21.6]} 35... h5 {[%clk 0:00:05]} 36.
Rd5 {[%clk 0:00:20.3]} 36... Kg7 {[%clk 0:00:01.5]} 37. Rxh5 {[%clk 0:00:19.8]}
37... Rxe3 {[%clk 0:00:01.8]} 38. Qxg4+ {[%clk 0:00:19.1]} 38... Kf7 {[%clk
0:00:01.6]} 39. Rh7+ {[%clk 0:00:18.7]} 39... Kf8 {[%clk 0:00:02.3]} 40. fxe3
{[%clk 0:00:18.6]} 40... Qxb2+ {[%clk 0:00:02.9]} 41. Kxh3 {[%clk 0:00:19]}
41... Rxe3+ {[%clk 0:00:01.8]} 42. Kh4 {[%clk 0:00:14.6]} 42... Qh2+ {[%clk
0:00:02.4]} 43. Kg5 {[%clk 0:00:15.3]} 43... Qxh7 {[%clk 0:00:02.9]} 44. Rd8+
{[%clk 0:00:15.1]} 44... Re8 {[%clk 0:00:02.5]} 45. Rxe8+ {[%clk 0:00:15.1]}
45... Kxe8 {[%clk 0:00:02.9]} 46. Qc8+ {[%clk 0:00:11.2]} 46... Kf7 {[%clk
0:00:03.6]} 47. Qb7+ {[%clk 0:00:11.3]} 47... Kg8 {[%clk 0:00:04.1]} 48. Qb8+
{[%clk 0:00:11.5]} 48... Kg7 {[%clk 0:00:04.7]} 49. Qxa7+ {[%clk 0:00:11.8]}
49... Kg8 {[%clk 0:00:05.5]} 50. Qxh7+ {[%clk 0:00:11.5]} 50... Kxh7 {[%clk
0:00:06.4]} 51. Kf6 {[%clk 0:00:12]} 1-0

[Event "Early-Titled-Tuesday-Blitz-October-03-2023"]
[Site "Chess.com"]
[Date "2023.10.03"]
[Round "10"]
[White "Oleksandr_Bortnyk"]
[Black "DenLaz"]
[Result "1/2-1/2"]
[WhiteElo "3022"]
[BlackElo "3066"]
[TimeControl "180+1"]
[EndTime "9:57:33 PDT"]
[Termination "Game drawn by repetition"]

1. e4 {[%clk 0:02:59.9]} 1... e5 {[%clk 0:03:00.5]} 2. Nf3 {[%clk 0:03:00.2]}
2... Nc6 {[%clk 0:03:01.1]} 3. Bb5 {[%clk 0:03:00.5]} 3... Nf6 {[%clk
0:02:59.1]} 4. Nc3 {[%clk 0:02:54]} 4... Nd4 {[%clk 0:02:57.2]} 5. Ba4 {[%clk
0:02:53.6]} 5... c6 {[%clk 0:02:56.3]} 6. d3 {[%clk 0:02:54.2]} 6... b5 {[%clk
0:02:28.2]} 7. Bb3 {[%clk 0:02:53.3]} 7... a5 {[%clk 0:02:28.8]} 8. Nxe5 {[%clk
0:02:45.8]} 8... d5 {[%clk 0:02:28.4]} 9. Be3 {[%clk 0:02:42.6]} 9... Nxb3
{[%clk 0:01:39.2]} 10. axb3 {[%clk 0:02:43.5]} 10... b4 {[%clk 0:01:39.5]} 11.
Na4 {[%clk 0:02:36]} 11... Qc7 {[%clk 0:01:36.1]} 12. f4 {[%clk 0:02:12.8]}
12... dxe4 {[%clk 0:01:29]} 13. dxe4 {[%clk 0:02:09.3]} 13... Ba6 {[%clk
0:01:23.7]} 14. Bb6 {[%clk 0:02:03.7]} 14... Qb7 {[%clk 0:01:16.3]} 15. Qd4
{[%clk 0:01:56.2]} 15... Be7 {[%clk 0:01:10.8]} 16. O-O-O {[%clk 0:01:54.3]}
16... O-O {[%clk 0:01:10.9]} 17. Bc5 {[%clk 0:01:45.7]} 17... Bb5 {[%clk
0:01:08.7]} 18. Bxe7 {[%clk 0:01:45.1]} 18... Qxe7 {[%clk 0:01:09.6]} 19. Nc5
{[%clk 0:01:39.9]} 19... a4 {[%clk 0:00:55.6]} 20. bxa4 {[%clk 0:01:40.8]} 20...
Bxa4 {[%clk 0:00:56.5]} 21. b3 {[%clk 0:01:12.8]} 21... Bb5 {[%clk 0:00:55.3]}
22. Kb2 {[%clk 0:01:12]} 22... Rfd8 {[%clk 0:00:33]} 23. Qxb4 {[%clk 0:01:12.1]}
23... Rxd1 {[%clk 0:00:32]} 24. Rxd1 {[%clk 0:01:13]} 24... Nxe4 {[%clk
0:00:32.6]} 25. Ncd3 {[%clk 0:01:04.5]} 25... Nd6 {[%clk 0:00:10.3]} 26. Ra1
{[%clk 0:01:01.3]} 26... Rd8 {[%clk 0:00:09.3]} 27. Qc5 {[%clk 0:00:55]} 27...
Bxd3 {[%clk 0:00:06.4]} 28. Nxd3 {[%clk 0:00:55.9]} 28... h6 {[%clk 0:00:05.3]}
29. Ra7 {[%clk 0:00:52.7]} 29... Qf6+ {[%clk 0:00:05.4]} 30. Qe5 {[%clk
0:00:51.8]} 30... Qg6 {[%clk 0:00:05.9]} 31. Qe7 {[%clk 0:00:49.7]} 31... Re8
{[%clk 0:00:06.2]} 32. Qd7 {[%clk 0:00:44.8]} 32... Qf6+ {[%clk 0:00:06.5]} 33.
Kb1 {[%clk 0:00:33.7]} 33... Kh7 {[%clk 0:00:03.6]} 34. Qxc6 {[%clk 0:00:31.1]}
34... Re6 {[%clk 0:00:03.7]} 35. Qd5 {[%clk 0:00:22.2]} 35... Ne4 {[%clk
0:00:04.3]} 36. Kc1 {[%clk 0:00:15.6]} 36... Nc3 {[%clk 0:00:04.5]} 37. Qc5
{[%clk 0:00:11.3]} 37... Ne2+ {[%clk 0:00:04.7]} 38. Kb1 {[%clk 0:00:11.9]}
38... Nc3+ {[%clk 0:00:05.1]} 39. Kc1 {[%clk 0:00:10.4]} 39... Ne2+ {[%clk
0:00:05.6]} 40. Kd2 {[%clk 0:00:10.9]} 40... Nxf4 {[%clk 0:00:04]} 41. Ra5
{[%clk 0:00:07.5]} 41... Re2+ {[%clk 0:00:03.5]} 42. Kd1 {[%clk 0:00:06.8]}
42... Nxd3 {[%clk 0:00:04]} 43. Qf5+ {[%clk 0:00:05.7]} 43... Qxf5 {[%clk
0:00:04.4]} 44. Rxf5 {[%clk 0:00:06.6]} 44... Rf2 {[%clk 0:00:05]} 45. Rxf2
{[%clk 0:00:05.7]} 45... Nxf2+ {[%clk 0:00:05.9]} 46. Ke2 {[%clk 0:00:06.3]}
46... Ne4 {[%clk 0:00:06.2]} 47. Kd3 {[%clk 0:00:06.1]} 47... f5 {[%clk
0:00:06.6]} 48. b4 {[%clk 0:00:05.5]} 48... Kg6 {[%clk 0:00:07.2]} 49. Kd4
{[%clk 0:00:05.6]} 49... Kf6 {[%clk 0:00:07.8]} 50. Kd5 {[%clk 0:00:05.3]} 50...
Nc3+ {[%clk 0:00:07.5]} 51. Kc4 {[%clk 0:00:05.5]} 51... Ne4 {[%clk 0:00:07.6]}
52. Kd5 {[%clk 0:00:06.1]} 52... Nc3+ {[%clk 0:00:04.5]} 53. Kc4 {[%clk
0:00:06.2]} 53... Ne4 {[%clk 0:00:02.4]} 54. Kd5 {[%clk 0:00:05.1]} 1/2-1/2

[Event "Early-Titled-Tuesday-Blitz-October-03-2023"]
[Site "Chess.com"]
[Date "2023.10.03"]
[Round "10"]
[White "ActorXu"]
[Black "Zhigalko_Sergei"]
[Result "0-1"]
[WhiteElo "2723"]
[BlackElo "2924"]
[TimeControl "180+1"]
[EndTime "9:57:37 PDT"]
[Termination "Zhigalko_Sergei won by checkmate"]

1. e4 {[%clk 0:02:57.7]} 1... c5 {[%clk 0:03:00.2]} 2. Nf3 {[%clk 0:02:56]} 2...
Nc6 {[%clk 0:03:00.8]} 3. Bb5 {[%clk 0:02:55.5]} 3... Nf6 {[%clk 0:03:01.3]} 4.
Bxc6 {[%clk 0:02:55.9]} 4... dxc6 {[%clk 0:03:02.2]} 5. d3 {[%clk 0:02:56.1]}
5... Bg4 {[%clk 0:03:02.7]} 6. h3 {[%clk 0:02:56]} 6... Bh5 {[%clk 0:03:03.1]}
7. Nc3 {[%clk 0:02:52.6]} 7... Qc7 {[%clk 0:03:02.8]} 8. Be3 {[%clk 0:02:52.2]}
8... Nd7 {[%clk 0:03:01.7]} 9. g4 {[%clk 0:02:48.4]} 9... Bg6 {[%clk 0:03:01.5]}
10. Nh4 {[%clk 0:02:49.1]} 10... e6 {[%clk 0:02:59.1]} 11. f4 {[%clk 0:02:47.4]}
11... Be7 {[%clk 0:02:58.6]} 12. Nf3 {[%clk 0:02:37.2]} 12... f6 {[%clk
0:02:51.1]} 13. Qd2 {[%clk 0:02:36.5]} 13... O-O-O {[%clk 0:02:50.4]} 14. O-O-O
{[%clk 0:02:36.4]} 14... Rhe8 {[%clk 0:02:38.8]} 15. Kb1 {[%clk 0:02:29.3]}
15... e5 {[%clk 0:02:18.6]} 16. Rhf1 {[%clk 0:02:13.5]} 16... Bd6 {[%clk
0:02:08.2]} 17. Nh4 {[%clk 0:02:09.3]} 17... Bf7 {[%clk 0:02:06.9]} 18. Nf5
{[%clk 0:02:08.6]} 18... Bf8 {[%clk 0:02:06.8]} 19. Qf2 {[%clk 0:02:03.5]} 19...
Qa5 {[%clk 0:01:52.7]} 20. Bd2 {[%clk 0:01:36.6]} 20... b5 {[%clk 0:01:29.4]}
21. b3 {[%clk 0:01:08.8]} 21... c4 {[%clk 0:01:27.9]} 22. dxc4 {[%clk
0:00:59.4]} 22... bxc4 {[%clk 0:01:28]} 23. Na4 {[%clk 0:00:45.1]} 23... Qa6
{[%clk 0:01:22.4]} 24. Be3 {[%clk 0:00:43.5]} 24... exf4 {[%clk 0:00:57.4]} 25.
Bxf4 {[%clk 0:00:27.8]} 25... cxb3 {[%clk 0:00:47.7]} 26. axb3 {[%clk 0:00:26]}
26... Rxe4 {[%clk 0:00:45.7]} 27. Nd6+ {[%clk 0:00:22]} 27... Bxd6 {[%clk
0:00:45.1]} 28. Rxd6 {[%clk 0:00:22.6]} 28... Rxa4 {[%clk 0:00:33.7]} 29. bxa4
{[%clk 0:00:22.2]} 29... Qxa4 {[%clk 0:00:34.4]} 30. Rfd1 {[%clk 0:00:20.9]}
30... Bd5 {[%clk 0:00:08.9]} 31. Kb2 {[%clk 0:00:09.9]} 31... Qa2+ {[%clk
0:00:07.5]} 32. Kc3 {[%clk 0:00:08.6]} 32... Re8 {[%clk 0:00:05.9]} 33. Qd4
{[%clk 0:00:03.9]} 33... Qa3+ {[%clk 0:00:04.8]} 34. Kd2 {[%clk 0:00:04.3]}
34... Re4 {[%clk 0:00:05]} 35. Qd3 {[%clk 0:00:03.2]} 35... Qxd3+ {[%clk
0:00:05.2]} 36. cxd3 {[%clk 0:00:03.3]} 36... Rxf4 {[%clk 0:00:06.1]} 37. Re1
{[%clk 0:00:03.7]} 37... Kc7 {[%clk 0:00:06.1]} 38. Rxd5 {[%clk 0:00:03.5]}
38... cxd5 {[%clk 0:00:06.5]} 39. Ke3 {[%clk 0:00:04.4]} 39... g5 {[%clk
0:00:06.6]} 40. Rc1+ {[%clk 0:00:04.4]} 40... Kb6 {[%clk 0:00:06.3]} 41. d4
{[%clk 0:00:04.6]} 41... Re4+ {[%clk 0:00:05.9]} 42. Kf3 {[%clk 0:00:05.2]}
42... Nb8 {[%clk 0:00:05.2]} 43. h4 {[%clk 0:00:06.1]} 43... Nc6 {[%clk
0:00:05.3]} 44. hxg5 {[%clk 0:00:06.4]} 44... Nxd4+ {[%clk 0:00:05.6]} 45. Kg3
{[%clk 0:00:06.9]} 45... Ne2+ {[%clk 0:00:05.8]} 46. Kh4 {[%clk 0:00:07]} 46...
Nxc1 {[%clk 0:00:06.7]} 47. gxf6 {[%clk 0:00:07.2]} 47... Rf4 {[%clk 0:00:06.9]}
48. Kg5 {[%clk 0:00:07.6]} 48... Rf2 {[%clk 0:00:07]} 49. Kh6 {[%clk 0:00:08.1]}
49... Rxf6+ {[%clk 0:00:07.1]} 50. Kg7 {[%clk 0:00:08.1]} 50... Rf1 {[%clk
0:00:08]} 51. g5 {[%clk 0:00:08.2]} 51... Rg1 {[%clk 0:00:08.9]} 52. Kxh7 {[%clk
0:00:08.9]} 52... Rxg5 {[%clk 0:00:08.7]} 53. Kh6 {[%clk 0:00:09.8]} 53... Rg1
{[%clk 0:00:09.6]} 54. Kh5 {[%clk 0:00:10.1]} 54... d4 {[%clk 0:00:10.5]} 55.
Kh4 {[%clk 0:00:11]} 55... Ne2 {[%clk 0:00:11.4]} 56. Kh3 {[%clk 0:00:11.9]}
56... d3 {[%clk 0:00:12.3]} 57. Kh2 {[%clk 0:00:12.6]} 57... d2 {[%clk
0:00:13.2]} 58. Kh3 {[%clk 0:00:13.5]} 58... d1=Q {[%clk 0:00:13]} 59. Kh2
{[%clk 0:00:14.4]} 59... Qd6+ {[%clk 0:00:11.5]} 60. Kh3 {[%clk 0:00:14.6]}
60... Qg3# {[%clk 0:00:12.4]} 0-1

[Event "Early-Titled-Tuesday-Blitz-October-03-2023"]
[Site "Chess.com"]
[Date "2023.10.03"]
[Round "10"]
[White "Rodalquilar"]
[Black "FERNANDEZL1983"]
[Result "1-0"]
[WhiteElo "2717"]
[BlackElo "2591"]
[TimeControl "180+1"]
[EndTime "9:57:42 PDT"]
[Termination "Rodalquilar won by resignation"]

1. d4 {[%clk 0:03:00.9]} 1... Nf6 {[%clk 0:02:53.8]} 2. Nf3 {[%clk 0:03:01.1]}
2... e6 {[%clk 0:02:48.7]} 3. Bf4 {[%clk 0:03:01.1]} 3... d5 {[%clk 0:02:47.9]}
4. e3 {[%clk 0:03:01.4]} 4... c5 {[%clk 0:02:47.4]} 5. Nbd2 {[%clk 0:03:01.2]}
5... Bd6 {[%clk 0:02:46.8]} 6. Bb5+ {[%clk 0:03:00.5]} 6... Nc6 {[%clk
0:02:44.4]} 7. Bg3 {[%clk 0:03:00.8]} 7... O-O {[%clk 0:02:42.7]} 8. c3 {[%clk
0:03:01.3]} 8... Ne7 {[%clk 0:02:35.5]} 9. Bd3 {[%clk 0:03:00.6]} 9... c4 {[%clk
0:02:30.9]} 10. Bc2 {[%clk 0:03:00.5]} 10... b5 {[%clk 0:02:30.3]} 11. e4 {[%clk
0:03:01.1]} 11... dxe4 {[%clk 0:02:29.9]} 12. Nxe4 {[%clk 0:03:01]} 12... Nxe4
{[%clk 0:02:28.9]} 13. Bxe4 {[%clk 0:03:00.4]} 13... Nd5 {[%clk 0:02:27.8]} 14.
Ng5 {[%clk 0:02:51.2]} 14... g6 {[%clk 0:02:23.8]} 15. Qf3 {[%clk 0:02:09.9]}
15... Bb7 {[%clk 0:02:08.8]} 16. h4 {[%clk 0:01:58.2]} 16... h6 {[%clk
0:01:53.7]} 17. Nxe6 {[%clk 0:00:52.1]} 17... fxe6 {[%clk 0:01:50.7]} 18. Qg4
{[%clk 0:00:52.6]} 18... Rf6 {[%clk 0:01:39.4]} 19. Be5 {[%clk 0:00:52.8]} 19...
Qf8 {[%clk 0:00:58.3]} 20. Bxg6 {[%clk 0:00:45.6]} 20... Qg7 {[%clk 0:00:54.9]}
21. Bxf6 {[%clk 0:00:38.3]} 21... Nxf6 {[%clk 0:00:54.5]} 22. Qxe6+ {[%clk
0:00:38.8]} 22... Kh8 {[%clk 0:00:53.6]} 23. h5 {[%clk 0:00:31.8]} 23... Bf4
{[%clk 0:00:48]} 24. Rg1 {[%clk 0:00:32.2]} 24... Bd5 {[%clk 0:00:46.3]} 25. Qe2
{[%clk 0:00:30.4]} 25... b4 {[%clk 0:00:40.4]} 26. g3 {[%clk 0:00:30.5]} 26...
Bd6 {[%clk 0:00:40]} 27. g4 {[%clk 0:00:21.4]} 27... bxc3 {[%clk 0:00:39.5]} 28.
bxc3 {[%clk 0:00:22]} 28... Nh7 {[%clk 0:00:34.7]} 29. Rb1 {[%clk 0:00:19.8]}
29... Ng5 {[%clk 0:00:31.1]} 30. Kf1 {[%clk 0:00:15.6]} 30... Rf8 {[%clk
0:00:26.8]} 31. Rg2 {[%clk 0:00:13.7]} 31... Bxg2+ {[%clk 0:00:19.3]} 32. Kxg2
{[%clk 0:00:13.9]} 32... Qf6 {[%clk 0:00:19.2]} 33. Rb7 {[%clk 0:00:08.2]} 33...
Bf4 {[%clk 0:00:18.1]} 34. Qxc4 {[%clk 0:00:07.4]} 34... Be3 {[%clk 0:00:17.3]}
35. Qe2 {[%clk 0:00:04.4]} 35... Bxf2 {[%clk 0:00:17.1]} 36. Qe5 {[%clk
0:00:04.8]} 36... Qxe5 {[%clk 0:00:16.6]} 37. dxe5 {[%clk 0:00:05.4]} 37... Bb6
{[%clk 0:00:17.1]} 38. Bf5 {[%clk 0:00:05.3]} 38... Re8 {[%clk 0:00:16.9]} 39.
e6 {[%clk 0:00:03.5]} 39... Nxe6 {[%clk 0:00:16.6]} 40. Rh7+ {[%clk 0:00:03.9]}
40... Kg8 {[%clk 0:00:16.2]} 41. Rxh6 {[%clk 0:00:04.6]} 41... Nf4+ {[%clk
0:00:16.3]} 42. Kf3 {[%clk 0:00:05.3]} 42... Bc7 {[%clk 0:00:16.4]} 43. Rc6
{[%clk 0:00:05]} 43... Bb8 {[%clk 0:00:15.6]} 44. Bd7 {[%clk 0:00:03.7]} 44...
Rd8 {[%clk 0:00:15.1]} 45. Bf5 {[%clk 0:00:03.7]} 45... Nd5 {[%clk 0:00:15.6]}
46. c4 {[%clk 0:00:02.7]} 46... Ne7 {[%clk 0:00:16.2]} 47. Rc5 {[%clk
0:00:02.1]} 47... Nxf5 {[%clk 0:00:16.5]} 48. Rxf5 {[%clk 0:00:02.6]} 48... Rd3+
{[%clk 0:00:16.7]} 49. Ke4 {[%clk 0:00:03.1]} 49... Ra3 {[%clk 0:00:16.7]} 50.
Rb5 {[%clk 0:00:03]} 50... Bc7 {[%clk 0:00:15.9]} 51. Kf5 {[%clk 0:00:03.5]}
51... Bb6 {[%clk 0:00:16.1]} 52. c5 {[%clk 0:00:03.6]} 52... Ra5 {[%clk
0:00:13]} 53. Rxa5 {[%clk 0:00:03.9]} 53... Bxa5 {[%clk 0:00:13.2]} 54. Ke6
{[%clk 0:00:04.6]} 54... Kg7 {[%clk 0:00:11]} 55. c6 {[%clk 0:00:04.5]} 55...
Kf8 {[%clk 0:00:09]} 56. Kd7 {[%clk 0:00:05]} 56... Kf7 {[%clk 0:00:09.2]} 57.
c7 {[%clk 0:00:05.6]} 57... Bxc7 {[%clk 0:00:09.4]} 58. Kxc7 {[%clk 0:00:06.2]}
58... a5 {[%clk 0:00:10.2]} 59. Kb6 {[%clk 0:00:06.7]} 59... a4 {[%clk
0:00:10.6]} 60. Kb5 {[%clk 0:00:07.4]} 60... a3 {[%clk 0:00:11.1]} 61. Kb4
{[%clk 0:00:08]} 1-0